fUSD/lending_fUSD_20241127
["ID","MTS","AMOUNT","RATE_DAILY","PERIOD"]
[343514221,1732704640464,-1546.76302255,9.7e-05,2]
[343514223,1732704640473,-46012.34569716,0.0001,2]
[343514228,1732704640507,-450.71775106,0.0001,2]
[343514230,1732704640518,-278.16579061,0.0001,2]
[343514232,1732704640529,-4793.3453825,0.0001,2]
[343514418,1732704643232,-434.46,9.37e-05,2]
[343514421,1732704643242,-10217.44564826,0.0001,2]
[343514424,1732704643264,-3542.4851679,0.0001,2]
[343514425,1732704643484,-4627.20521608,0.0001,2]
[343514426,1732704643495,-3857.46385349,0.0001,2]
[343514427,1732704643518,-8800.70223499,0.0001,2]
[343514428,1732704643530,-34852.9404235,0.0001,2]
[343514429,1732704643541,-23711.088449,0.0001,2]
[343514435,1732704646238,-150.0,9.37e-05,2]
[343514436,1732704646250,-438.91575433,9.999e-05,2]
[343514437,1732704646262,-2015.54801013,0.0001,2]
[343514438,1732704646391,-13448.5340575,0.0001,2]
[343514439,1732704646402,-3488.4060499,0.0001,2]
[343514440,1732704646414,-16096.99588799,0.0001,2]
[343514441,1732704646426,-5622.92779531,0.0001,2]
[343514442,1732704646450,-316.89,9.7e-05,2]
[343514443,1732704646561,-313.693792,9.7e-05,2]
[343514444,1732704646574,-443.850508,9.7e-05,2]
[343514445,1732704646584,-46531.149492,0.0001,2]
[343514621,1732704964569,2573.45695357,1e-05,2]
[343514622,1732705065929,5100.0,0.00018,25]
[343514624,1732705086880,4317.64,0.00018,26]
[343514633,1732705474353,134906.85990637,8.219e-05,5]
[343514634,1732705489326,10000.0,0.0001663,15]
[343514636,1732705516873,40000.0,0.0001663,15]
[343514658,1732705832944,-878.12,8.219e-05,2]
[343514659,1732705832956,-536.77,8.219e-05,2]
[343514660,1732705832966,-286.5275,8.664e-05,2]
[343514661,1732705832977,-805.720879,8.664e-05,2]
[343514662,1732705832987,-18.179121,8.708e-05,2]
[343514663,1732705832999,-336.370879,8.708e-05,2]
[343514664,1732705833008,-488.959121,8.708e-05,2]
[343514665,1732705833021,-11.040879,8.708e-05,2]
[343514667,1732705833031,-653.77012316,8.949e-05,2]
[343514669,1732705833042,-810.656,8.949e-05,2]
[343514679,1732705833186,-981.97,8.949e-05,2]
[343514680,1732705833220,-2455.625,8.949e-05,2]
[343514681,1732705833232,-13375.5601903,8.949e-05,2]
[343514683,1732705838415,-2152.29868654,8.949e-05,2]
[343514684,1732705838425,-250.0,8.97e-05,2]
[343514685,1732705838435,-1000.0,9.042e-05,2]
[343514686,1732705838444,-230.38,9.077e-05,2]
[343514687,1732705838454,-627.32131346,9.278e-05,2]
[343514688,1732705838730,-188.94868654,9.278e-05,2]
[343514689,1732705838741,-362.86,9.278e-05,2]
[343514690,1732705838751,-257.55,9.344e-05,2]
[343514691,1732705838762,-150.0,9.359e-05,2]
[343514692,1732705838771,-2044.49218147,9.36e-05,2]
[343514693,1732705838783,-746.2,9.36e-05,2]
[343514704,1732705840574,-4254.76781853,9.36e-05,2]
[343514705,1732705840583,-445.58946147,9.36e-05,2]
[343514706,1732705840667,-2779.76053853,9.36e-05,2]
[343514707,1732705840676,-200.0,9.36e-05,2]
[343514708,1732705840685,-340.77133345,9.378e-05,2]
[343514709,1732705840696,-93.68866655,9.378e-05,2]
[343514710,1732705840705,-165.58,9.417e-05,2]
[343514711,1732705840714,-792.62177843,9.435e-05,2]
[343514712,1732705840725,-44331.26822157,9.435e-05,2]
[343514713,1732705840735,-626.68,9.613e-05,2]
[343514714,1732705840746,-797.9505,9.7e-05,2]
[343514715,1732705840755,-300.0,9.7e-05,2]
[343514716,1732705840764,-1584.881,9.7e-05,2]
[343514717,1732705840774,-13504.7125,9.7e-05,2]
[343514718,1732705840783,-4216.5062,9.7e-05,2]
[343514719,1732705840792,-4970.51060931,9.79e-05,2]
[343514720,1732705840802,-150.0,9.854e-05,2]
[343514721,1732705840811,-3393.63680798,9.9e-05,2]
[343514722,1732705840823,-1032.332,9.9e-05,2]
[343514723,1732705840856,-1448.96013925,9.9e-05,2]
[343514748,1732705843611,-5254.4559,9.8e-05,2]
[343514750,1732705843621,-5581.55945277,9.9e-05,2]
[343514752,1732705843631,-2415.0862,9.9e-05,2]
[343514754,1732705843640,-9871.78369806,9.9e-05,2]
[343514756,1732705843651,-2133.40900697,9.9e-05,2]
[343514759,1732705843663,-14915.44337581,9.9e-05,2]
[343514761,1732705843674,-10603.52568983,9.9e-05,2]
[343514763,1732705843685,-3937.2444406,9.9e-05,2]
[343514765,1732705843696,-582.72853,9.9e-05,2]
[343514766,1732705843707,-1171.47795,9.9e-05,2]
[343514767,1732705843718,-434.67999985,9.9e-05,2]
[343514768,1732705843730,-18875.92080586,9.9e-05,2]
[343514769,1732705843742,-2500.0,9.9e-05,2]
[343514770,1732705843752,-500.0,9.973e-05,2]
[343514771,1732705843761,-503.64091238,9.973e-05,2]
[343514772,1732705843771,-164.68964315,9.99e-05,2]
[343514773,1732705843780,-427.43,9.997e-05,2]
[343514774,1732705843789,-438.91575433,9.999e-05,2]
[343514775,1732705843798,-498.78311012,0.0001,2]
[343514776,1732705843808,-498.78311005,0.0001,2]
[343514777,1732705843817,-498.78311005,0.0001,2]
[343514778,1732705843827,-498.78311005,0.0001,2]
[343514779,1732705843836,-498.78311005,0.0001,2]
[343514780,1732705843845,-498.78311005,0.0001,2]
[343514781,1732705843854,-498.78311005,0.0001,2]
[343514782,1732705843863,-498.78311005,0.0001,2]
[343514783,1732705843872,-498.78311005,0.0001,2]
[343514784,1732705843881,-54001.97927699,0.0001,2]
[343514785,1732705843913,-5665.5902732,0.0001,2]
[343514786,1732705843926,-5733.13620236,0.0001,2]
[343514787,1732705843937,-12967.93809742,0.0001,2]
[343514788,1732705843949,-851.95145843,0.0001,2]
[343514789,1732705843960,-338.02896082,0.0001,2]
[343514792,1732705844022,-1063.14,0.0001,2]
[343515007,1732705846368,-5958.06523463,0.0001,2]
[343515034,1732705846622,-22805.15917098,0.0001,2]
[343515036,1732705846635,-3459.00000001,0.0001,2]
[343515043,1732705846687,-9417.36996297,0.0001,2]
[343515055,1732705846793,-4015.31581,0.0001,2]
[343515851,1732706050079,-461.33952815,0.00028,120]
[343515852,1732706050331,-295.0,0.000284,120]
[343515853,1732706075545,-1333.0,0.00029041,120]
[343515854,1732706075577,-450.0,0.0003,120]
[343515855,1732706075607,-21340.97079748,0.0003,120]
[343515856,1732706075637,-151.0,0.0003,120]
[343515857,1732706075667,-151.0,0.0003,120]
[343515859,1732706287856,1921.0,0.0003,120]
[343515860,1732706359810,10000.0,0.00015063,15]
[343515861,1732706368477,40000.0,0.00015063,15]
[343515862,1732706411625,364.0,0.00014,8]
[343515864,1732706448995,50000.0,0.00015063,15]
[343515865,1732706681793,151.89,0.00028,60]
[343515871,1732706790064,50000.0,0.00015063,20]
[343515872,1732706804820,8218.8,0.00028,60]
[343515892,1732706921588,246.17588258,0.0002736,120]
[343515928,1732707032738,-1358.32,8.219e-05,2]
[343515930,1732707032748,-275.91,8.708e-05,2]
[343515932,1732707032758,-1000.0,8.708e-05,2]
[343515934,1732707032767,-166.83,8.97e-05,2]
[343515936,1732707032776,-184.3,9.063e-05,2]
[343515938,1732707032791,-6013.194852,9.211e-05,2]
[343515946,1732707032854,-795.9674689,9.211e-05,2]
[343515955,1732707032937,-241.4776791,9.211e-05,2]
[343515957,1732707032946,-184.49574068,9.217e-05,2]
[343515960,1732707032957,-89.41425932,9.217e-05,2]
[343515962,1732707032967,-250.0,9.256e-05,2]
[343515964,1732707032976,-250.0,9.308e-05,2]
[343515966,1732707032985,-166.83,9.463e-05,2]
[343515968,1732707032994,-243.84574068,9.483e-05,2]
[343516108,1732707037672,-56.15425932,9.483e-05,2]
[343516109,1732707037681,-341.944,9.604e-05,2]
[343516110,1732707037691,-313.34,9.682e-05,2]
[343516111,1732707037701,-179.49,9.688e-05,2]
[343516112,1732707037711,-2500.0,9.7e-05,2]
[343516113,1732707037720,-4558.0141,9.7e-05,2]
[343516114,1732707037730,-275.91,9.797e-05,2]
[343516115,1732707037741,-1000.0,9.797e-05,2]
[343516116,1732707037752,-718670.2254,9.8e-05,2]
[343516117,1732707037762,-4334.6863,9.8e-05,2]
[343516118,1732707037772,-150.0,9.854e-05,2]
[343516119,1732707037781,-181991.6685,9.9e-05,2]
[343516120,1732707037792,-1000.0,9.95e-05,2]
[343516121,1732707037802,-166.83,9.957e-05,2]
[343516122,1732707037810,-511.81214025,9.973e-05,2]
[343516123,1732707037820,-500.0,9.973e-05,2]
[343516124,1732707037829,-329.18681575,9.999e-05,2]
[343516125,1732707037839,-150.01,9.999e-05,2]
[343516126,1732707037849,-47535.95814333,0.0001,2]
[343516127,1732707037859,-188.52481073,0.0001,2]
[343516128,1732707037870,-188.52481064,0.0001,2]
[343516129,1732707037881,-188.52481064,0.0001,2]
[343516130,1732707037890,-188.52481064,0.0001,2]
[343516131,1732707037899,-188.52481064,0.0001,2]
[343516132,1732707037909,-188.52481064,0.0001,2]
[343516133,1732707037919,-188.52481064,0.0001,2]
[343516134,1732707037928,-188.52481064,0.0001,2]
[343516135,1732707037938,-188.52481064,0.0001,2]
[343516136,1732707037949,-32012270.98244836,0.0001,2]
[343516137,1732707037961,-1000.0,0.0001,2]
[343516138,1732707037971,-1000.0,0.0001,2]
[343516139,1732707037981,-20000.0,0.0001,2]
[343516140,1732707037992,-1409.45799009,0.0001,2]
[343516141,1732707038003,-937.59015637,0.0001,3]
[343516142,1732707038012,-166.83757373,0.0001,2]
[343516143,1732707038023,-1506.98702523,0.0001,2]
[343516144,1732707038039,-63699.05102975,0.0001,2]
[343516150,1732707038256,-2135.5810524,0.0001,2]
[343516151,1732707038266,-3000.0,0.0001,2]
[343516152,1732707038276,-1735.89830985,0.0001,2]
[343516153,1732707038286,-188.52481064,0.0001,2]
[343516154,1732707038297,-60467370.90516058,0.0001,2]
[343516156,1732707038515,-1317984.79894381,0.0001,2]
[343516157,1732707039776,-760.20306952,0.0001,2]
[343516158,1732707039788,-502.2,0.0001,2]
[343516159,1732707039800,-1619.02,0.0001,2]
[343516160,1732707039811,-23206.62341999,0.0001,2]
[343516161,1732707039851,-6140.03078954,0.0001,2]
[343516162,1732707039863,-1208.08,0.0001,2]
[343516163,1732707039877,-553.0700283,0.0001,2]
[343516182,1732707043446,-2688.75066589,0.0001,2]
[343516183,1732707043458,-2991.27840394,0.0001,2]
[343516184,1732707043469,-4116.44689942,0.0001,2]
[343516185,1732707043480,-10515.4696,0.0001,2]
[343516186,1732707043507,-7955.03483296,0.0001,2]
[343516187,1732707043572,-610.09901361,0.0001,2]
[343516188,1732707043627,-3325.65622392,0.0001,2]
[343516189,1732707043639,-3597.39654098,0.0001,2]
[343516190,1732707043652,-4097.08614509,0.0001,2]
[343516191,1732707043674,-50130.70468253,0.0001,2]
[343516192,1732707043686,-22962.09038652,0.0001,2]
[343516197,1732707045620,-246.89011181,9.999e-05,2]
[343516198,1732707045631,-1457.89721837,0.0001,2]
[343516199,1732707045644,-5277.02259098,0.0001,2]
[343516200,1732707045657,-1815.21067065,0.0001,2]
[343516201,1732707045690,-7215.49954466,0.0001,2]
[343516202,1732707045701,-13802.89940807,0.0001,2]
[343516203,1732707045992,-728.72878761,0.0001,2]
[343516229,1732707215779,-507.57,8.708e-05,2]
[343516230,1732707215800,-186.92,8.708e-05,2]
[343516231,1732707215822,-245.51,9.527e-05,2]
[343516233,1732707247816,-1757.72,9.527e-05,2]
[343516234,1732707247842,-300.0,9.699e-05,2]
[343516235,1732707247867,-3314.36,9.699e-05,2]
[343516236,1732707247891,-2500.0,9.7e-05,2]
[343516237,1732707247915,-2222.0304,9.7e-05,2]
[343516238,1732707247939,-11999.96141686,9.7e-05,2]
[343516239,1732707247963,-2500.0,9.7e-05,2]
[343516240,1732707247986,-5642.87484709,9.7e-05,2]
[343516241,1732707248010,-250.0,9.713e-05,2]
[343516242,1732707248032,-3036.14392507,9.79e-05,2]
[343516243,1732707248055,-150.0,9.857e-05,2]
[343516244,1732707248080,-12704.0,9.9e-05,2]
[343516245,1732707248103,-500.0,9.973e-05,2]
[343516246,1732707248126,-122.90941098,9.989e-05,2]
[343516247,1732707574685,1000.0,0.00028,60]
[343516251,1732707753427,5805.87,0.00028,60]
[343516252,1732707906202,20129.0,0.00028,60]
[343516297,1732708231888,-1443.95,8.219e-05,2]
[343516298,1732708231898,-168.02,9.016e-05,2]
[343516299,1732708231908,-1500.0,9.587e-05,2]
[343516300,1732708231917,-253.78,9.63e-05,2]
[343516301,1732708231927,-130.85,9.713e-05,2]
[343516302,1732708232008,-119.15,9.713e-05,2]
[343516303,1732708232018,-2118.9404,9.8e-05,2]
[343516304,1732708232027,-1000.0,9.853e-05,2]
[343516305,1732708232036,-150.0,9.854e-05,2]
[343516306,1732708232046,-300.0,9.899e-05,2]
[343516307,1732708232055,-6521.0,9.9e-05,2]
[343516308,1732708232064,-29801.3681,9.9e-05,2]
[343516309,1732708232074,-2500.0,9.9e-05,2]
[343516310,1732708232083,-6681.03345832,9.96e-05,2]
[343516324,1732708237906,-9.72654019,9.96e-05,2]
[343516325,1732708237918,-3309.24000149,9.96e-05,2]
[343516326,1732708237930,-434.45,9.96e-05,2]
[343516327,1732708237941,-150.0,9.973e-05,2]
[343516328,1732708237952,-159.83968,9.973e-05,2]
[343516329,1732708237962,-500.0,9.973e-05,2]
[343516330,1732708237975,-167577.19826311,9.977e-05,2]
[343516331,1732708237987,-167577.19826311,9.982e-05,2]
[343516332,1732708237997,-167577.19826311,9.983e-05,2]
[343516333,1732708238009,-167577.19826311,9.984e-05,2]
[343516334,1732708238020,-167577.19826311,9.992e-05,2]
[343516335,1732708238029,-167577.19826311,9.997e-05,2]
[343516336,1732708238039,-273.555,9.999e-05,2]
[343516337,1732708238048,-60664081.18,9.999e-05,2]
[343516338,1732708238058,-150.01,9.999e-05,2]
[343516339,1732708238068,-267.46428779,9.999e-05,2]
[343516340,1732708238078,-31964107.10211046,0.0001,2]
[343516341,1732708238089,-251.09999,0.0001,2]
[343516342,1732708238124,-89112.06860323,0.0001,2]
[343516355,1732708240240,-3607.06898376,0.0001,2]
[343516357,1732708242920,-6183.01027264,0.0001,2]
[343516358,1732708242936,-1042.78140002,0.0001,2]
[343516359,1732708243099,-1624.4130335,0.0001,2]
[343516370,1732708246506,-150.01,9.999e-05,2]
[343516371,1732708246516,-261.66106368,9.999e-05,2]
[343516372,1732708246526,-1932.19881035,0.0001,2]
[343516373,1732708246582,-2517.7983252,0.0001,2]
[343516374,1732708246594,-325.1179799,0.0001,2]
[343516375,1732708246605,-542.961114,0.0001,2]
[343516376,1732708321684,226.0,0.00028,120]
[343516379,1732708745851,-150.01,7.607e-05,2]
[343516380,1732708745875,-165.54,9.016e-05,2]
[343516381,1732708745896,-150.0,9.12e-05,2]
[343516382,1732708745918,-250.0,9.453e-05,2]
[343516383,1732708745939,-1000.0,9.888e-05,2]
[343516384,1732708745960,-300.0,9.898e-05,2]
[343516385,1732708745982,-25829.9841,9.899e-05,2]
[343516390,1732709136407,223.398457,0.00028,60]
[343516401,1732709422509,302.0,0.00028,60]
[343516410,1732709432173,-1371.75,8.219e-05,2]
[343516411,1732709432183,-184.3,9.458e-05,2]
[343516412,1732709432192,-253.78,9.468e-05,2]
[343516413,1732709432201,-710.01998623,9.468e-05,2]
[343516414,1732709432230,-378.12554042,9.468e-05,2]
[343516415,1732709432333,-411.85447335,9.468e-05,2]
[343516416,1732709432343,-552.77663403,9.468e-05,2]
[343516417,1732709432353,-300.0,9.698e-05,2]
[343516418,1732709432363,-3104.34658745,9.699e-05,2]
[343516428,1732709438313,-837.0,9.699e-05,2]
[343516429,1732709438326,-337.74231255,9.699e-05,2]
[343516430,1732709438336,-310.61494866,9.699e-05,2]
[343516431,1732709438377,-242.16168535,9.699e-05,2]
[343516432,1732709438386,-321.8579621,9.899e-05,2]
[343516437,1732709438447,-152299.8484379,9.899e-05,2]
[343516439,1732709438456,-237097.25426757,9.9e-05,2]
[343516441,1732709438465,-2500.0,9.9e-05,2]
[343516443,1732709438475,-798.0,9.9e-05,2]
[343516445,1732709438484,-834.82615401,9.91e-05,2]
[343516447,1732709438494,-500.0,9.973e-05,2]
[343516449,1732709438503,-500.0,9.973e-05,2]
[343516451,1732709438512,-8246.51375781,9.976e-05,2]
[343516454,1732709438524,-8246.51375781,9.978e-05,2]
[343516457,1732709438533,-8246.51375781,9.98e-05,2]
[343516460,1732709438542,-166.66764577,9.99e-05,2]
[343516463,1732709438551,-166.66764572,9.99e-05,2]
[343516465,1732709438560,-166.66764572,9.99e-05,2]
[343516467,1732709438570,-166.66764572,9.99e-05,2]
[343516469,1732709438579,-166.66764572,9.99e-05,2]
[343516471,1732709438588,-8246.51375781,9.993e-05,2]
[343516473,1732709438597,-8246.51375781,9.997e-05,2]
[343516475,1732709438607,-218.844,9.998e-05,2]
[343516477,1732709438616,-150.01,9.999e-05,2]
[343516479,1732709438626,-350.81582628,9.999e-05,2]
[343516482,1732709438635,-872.59,9.999e-05,2]
[343516484,1732709438644,-592363.9067219,9.999e-05,2]
[343516486,1732709438653,-8246.51375781,9.999e-05,2]
[343516488,1732709438663,-652.92484607,0.0001,2]
[343516490,1732709438672,-652.92484599,0.0001,2]
[343516492,1732709438681,-652.92484599,0.0001,2]
[343516494,1732709438691,-652.92484599,0.0001,2]
[343516496,1732709438700,-652.92484599,0.0001,2]
[343516498,1732709438709,-652.92484599,0.0001,2]
[343516500,1732709438718,-652.92484599,0.0001,2]
[343516502,1732709438727,-652.92484599,0.0001,2]
[343516504,1732709438736,-652.92484599,0.0001,2]
[343516506,1732709438746,-16570743.0772991,0.0001,2]
[343516508,1732709438755,-213.33234164,0.0001,2]
[343516510,1732709438764,-2605.60224483,0.0001,2]
[343516512,1732709438777,-8011.14046629,0.0001,2]
[343516514,1732709438786,-1000.0,0.0001,2]
[343516516,1732709438795,-1000.0,0.0001,2]
[343516517,1732709438804,-1000.0,0.0001,2]
[343516519,1732709438814,-1000.0,0.0001,2]
[343516521,1732709438824,-1000.0,0.0001,2]
[343516523,1732709438833,-842.52320939,0.0001,2]
[343516524,1732709438842,-1000.0,0.0001,2]
[343516525,1732709438851,-1000.0,0.0001,2]
[343516526,1732709438860,-1000.0,0.0001,2]
[343516527,1732709438869,-735.89830985,0.0001,2]
[343516528,1732709438879,-1583.89423003,0.0001,2]
[343516529,1732709438888,-150.0,0.0001,2]
[343516530,1732709438897,-166.83757373,0.0001,2]
[343516531,1732709438906,-1506.98702523,0.0001,2]
[343516532,1732709438915,-937.59015637,0.0001,2]
[343516533,1732709438924,-3000.0,0.0001,2]
[343516534,1732709438933,-3180.69721298,0.0001,2]
[343516535,1732709438942,-652.92484599,0.0001,2]
[343516536,1732709438955,-2949.55127005,0.0001,2]
[343516537,1732709438965,-166.66764572,0.0001,2]
[343516538,1732709438975,-10900.7191846,0.00010021,2]
[343516539,1732709438984,-151.4945705,0.00010028,2]
[343516540,1732709438993,-503.0706033,0.00010035,2]
[343516541,1732709439002,-223.3111641,0.00010042,2]
[343516542,1732709439012,-150.0,0.00010098,2]
[343516543,1732709439024,-152.167,0.00010098,2]
[343516544,1732709439033,-151.0,0.00010098,2]
[343516545,1732709439043,-150.665,0.00010098,2]
[343516546,1732709439052,-150.0,0.00010098,2]
[343516547,1732709439062,-150.0,0.00010098,2]
[343516548,1732709439072,-150.0,0.00010098,2]
[343516549,1732709439081,-248.7,0.00010098,2]
[343516550,1732709439090,-153.493,0.00010098,2]
[343516551,1732709439100,-150.5,0.00010098,2]
[343516552,1732709439109,-1259.0,0.00010098,2]
[343516553,1732709439118,-565.0,0.00010098,2]
[343516554,1732709439127,-211.469,0.00010098,2]
[343516555,1732709439137,-630.0,0.00010098,2]
[343516556,1732709439146,-2014.756,0.00010098,2]
[343516557,1732709439156,-299.865,0.00010098,2]
[343516558,1732709439166,-571.488,0.00010098,2]
[343516559,1732709439176,-1931.0,0.00010098,2]
[343516560,1732709439185,-3756.0,0.00010098,2]
[343516561,1732709439194,-816.0,0.00010098,2]
[343516562,1732709439204,-1263.0,0.00010098,2]
[343516563,1732709439213,-979.0,0.00010098,2]
[343516564,1732709439222,-534.0,0.00010098,2]
[343516565,1732709439231,-3522.0,0.00010098,2]
[343516566,1732709439241,-5953.0,0.00010098,2]
[343516567,1732709439251,-1164.0,0.00010098,2]
[343516568,1732709439262,-288.917,0.00010098,2]
[343516569,1732709439279,-156.126,0.00010098,2]
[343516570,1732709439288,-13688.0,0.00010098,2]
[343516571,1732709439297,-250.0,0.000101,2]
[343516572,1732709439306,-250.0,0.000101,2]
[343516573,1732709439316,-250.0,0.000101,2]
[343516574,1732709439327,-250.0,0.000101,2]
[343516575,1732709439337,-250.0,0.000101,2]
[343516576,1732709439348,-250.0,0.000101,2]
[343516577,1732709439357,-250.0,0.000101,2]
[343516578,1732709439366,-250.0,0.000101,2]
[343516579,1732709439376,-250.0,0.000101,2]
[343516580,1732709439385,-250.0,0.000101,2]
[343516581,1732709439395,-250.0,0.000101,2]
[343516582,1732709439404,-250.0,0.000101,2]
[343516583,1732709439414,-250.0,0.000101,2]
[343516584,1732709439423,-250.0,0.000101,2]
[343516585,1732709439433,-250.0,0.000101,2]
[343516586,1732709439442,-250.0,0.000101,2]
[343516587,1732709439451,-250.0,0.000101,2]
[343516588,1732709439460,-250.0,0.000101,2]
[343516589,1732709439470,-250.0,0.000101,2]
[343516590,1732709439479,-250.0,0.000101,2]
[343516591,1732709439487,-250.0,0.000101,2]
[343516592,1732709439496,-250.0,0.000101,2]
[343516593,1732709439505,-250.0,0.000101,2]
[343516594,1732709439516,-250.0,0.000101,2]
[343516595,1732709439526,-250.0,0.000101,2]
[343516596,1732709439535,-165.54,0.00010143,2]
[343516597,1732709439545,-2500.0,0.00010175,2]
[343516598,1732709439554,-2500.0,0.00010175,2]
[343516599,1732709439564,-184.28,0.00010185,2]
[343516600,1732709439574,-407.50604137,0.00010317,2]
[343516601,1732709439583,-2949.55127004,0.000104,2]
[343516602,1732709439592,-1371.75,0.00010446,2]
[343516603,1732709439602,-166.83,0.0001045,2]
[343516604,1732709439613,-407.50604137,0.00010461,2]
[343516605,1732709439623,-74508.52,0.00010484,6]
[343516606,1732709439634,-2393.59,0.00010484,6]
[343516607,1732709439644,-8327.96,0.00010484,6]
[343516608,1732709439655,-1000.0,0.00010521,2]
[343516609,1732709439666,-578.0,0.00010528,2]
[343516610,1732709439675,-407.50604137,0.00010779,2]
[343516611,1732709439684,-17708.0,0.00010784,2]
[343516612,1732709439694,-2512.478651,0.000109,2]
[343516614,1732709439703,-2000.0,0.000109,2]
[343516615,1732709439712,-2000.0,0.000109,2]
[343516616,1732709439722,-2000.0,0.000109,2]
[343516617,1732709439732,-766.45720163,0.000109,2]
[343516618,1732709439741,-766.45720158,0.000109,2]
[343516619,1732709439751,-766.45720158,0.000109,2]
[343516620,1732709439761,-766.45720158,0.000109,2]
[343516621,1732709439773,-766.45720158,0.000109,2]
[343516623,1732709439782,-766.45720158,0.000109,2]
[343516624,1732709439792,-766.45720158,0.000109,2]
[343516625,1732709439801,-766.45720158,0.000109,2]
[343516626,1732709439810,-2949.55127004,0.000109,2]
[343516627,1732709439819,-248.99069296,0.00010958,2]
[343516628,1732709439828,-500.0,0.00010958,2]
[343516629,1732709439838,-500.0,0.00010958,2]
[343516630,1732709439847,-202.33832121,0.00010958,2]
[343516631,1732709439857,-500.0,0.00010958,2]
[343516632,1732709439866,-500.0,0.00010958,2]
[343516634,1732709439876,-500.0,0.00010958,2]
[343516635,1732709439886,-500.0,0.00010958,2]
[343516636,1732709439895,-500.0,0.00010958,2]
[343516637,1732709439905,-500.0,0.00010958,2]
[343516638,1732709439915,-300.0,0.00010958,2]
[343516639,1732709439925,-500.0,0.00010958,2]
[343516640,1732709439934,-500.0,0.00010958,2]
[343516641,1732709439944,-500.0,0.00010958,2]
[343516642,1732709439953,-537.65216568,0.00010958,2]
[343516643,1732709439963,-500.0,0.00010958,2]
[343516644,1732709439972,-535.99460735,0.00010958,2]
[343516645,1732709439981,-150.0,0.00010959,2]
[343516646,1732709439990,-1391.68,0.00010959,2]
[343516647,1732709439999,-598.29,0.00010959,2]
[343516648,1732709440009,-2342.35,0.00010959,2]
[343516649,1732709440019,-221091.14911268,0.0001098,2]
[343516650,1732709440028,-242.9189737,0.00010992,2]
[343516651,1732709440037,-547.2426562,0.00010992,2]
[343516652,1732709440046,-151.4945705,0.00010992,2]
[343516653,1732709440055,-11857.8555032,0.00010992,2]
[343516654,1732709440064,-161.43633207,0.00010999,2]
[343516655,1732709440073,-91247.07025359,0.00010999,2]
[343516656,1732709440083,-1000.0,0.00010999,2]
[343516657,1732709440092,-2000.0,0.00010999,2]
[343516658,1732709440102,-2000.0,0.00010999,2]
[343516659,1732709440111,-2000.0,0.00010999,2]
[343516660,1732709440120,-1157098.14949394,0.00011,2]
[343516661,1732709440129,-17779.73423855,0.00011,2]
[343516662,1732709440139,-150.0,0.00011,2]
[343516663,1732709440148,-400.0,0.00011,2]
[343516664,1732709440157,-12601963.33005453,0.00011,2]
[343516665,1732709440191,-718.77969,0.00011,2]
[343516666,1732709441113,-863.32500001,0.00011,2]
[343516667,1732709441125,-69159.65280001,0.00011,2]
[343516675,1732709442959,-0.10533623,0.0001,2]
[343516676,1732709443118,-1115.72466377,0.0001,2]
[343516677,1732709443127,-4877.50267418,0.00011,2]
[343516678,1732709443138,-3792.57576547,0.00011,2]
[343516679,1732709443202,-5585.38827873,0.00011,2]
[343516680,1732709443213,-3693.55704867,0.00011,2]
[343516681,1732709443224,-2590.87946752,0.00011,2]
[343516696,1732709446787,-710.84998685,0.00010052,2]
[343516697,1732709446907,-385.15001315,0.00010052,2]
[343516698,1732709446917,-1048.74998685,0.00011,2]
[343516699,1732709446929,-447.99997479,0.00011,2]
[343516700,1732709506400,302.0,0.00028,60]
[343516702,1732709754545,-179.94,0.00016658,30]
[343516703,1732709774931,-179.94,0.00019242,30]
[343516704,1732709774969,-237.38818,0.0002025,30]
[343516705,1732709774994,-402.73182,0.00021375,30]
[343516708,1732709900148,-1234.57,8.994e-05,2]
[343516709,1732709900173,-1500.0,9.165e-05,2]
[343516710,1732709900193,-837.0,9.798e-05,2]